bitfinex/quotes_SOLUSD_20240605
["timestamp","ask_amount","ask_price","bid_price","bid_amount"]
[1717559750188,7.15,172.88,172.86,2.1403]
[1717559750919,2.1399,172.91,172.87,2.1403]
[1717559751090,2.1395,172.94,172.9,2.1399]
[1717559751285,52.06454191,173.02,172.89,8.5602]
[1717559751490,52.06454191,173.02,172.88,120.0]
[1717559751491,7.15,172.93,172.91,2.1397]
[1717559751913,2.1394,172.95,172.9,2.1398]
[1717559752388,39.2949,172.98,172.87,8.5613]
[1717559752389,28.6,172.98,172.91,120.0]
[1717559752590,7.15,172.94,172.93,2.1395]
[1717559752785,2.139,172.98,172.91,120.0]
[1717559753018,7.15,172.95,172.93,2.1395]
[1717559753418,7.15,172.94,172.92,2.1396]
[1717559754094,7.15,172.95,172.92,2.1396]
[1717559755128,7.15,172.95,172.93,2.1395]
[1717559755797,7.15,172.96,172.93,2.1395]
[1717559756112,7.15,172.97,172.93,2.1395]
[1717559756486,7.15,172.97,172.94,2.1394]
[1717559756709,7.15,172.97,172.93,2.1395]
[1717559757015,2.1389,172.99,172.93,120.0]
[1717559757211,2.1387,173.0,172.93,120.0]
[1717559757424,2.1386,173.01,172.94,4.2789]
[1717559757600,7.15,172.99,172.95,6.6343]
[1717559757809,7.15,172.99,172.96,2.1391]
[1717559758803,19.2446,173.04,172.96,2.1391]
[1717559759001,7.15,172.99,172.96,2.1391]
[1717559760187,7.15,172.98,172.96,2.1391]
[1717559760388,2.1387,173.0,172.96,2.1391]
[1717559760624,7.15,172.98,172.96,2.1391]
[1717559761513,7.15,172.97,172.92,391.3383]
[1717559761715,7.15,172.96,172.92,391.3383]
[1717559761895,7.15,172.96,172.95,2.1393]
[1717559763006,7.15,172.97,172.95,2.1393]
[1717559763204,7.15,172.97,172.96,2.1392]
[1717559763506,7.15,172.98,172.97,2.139]
[1717559764201,7.15,172.98,172.96,2.1391]
[1717559766516,7.15,172.97,172.96,2.1391]
[1717559767502,2.1386,173.01,172.97,2.139]
[1717559767731,2.1384,173.03,172.99,2.1387]
[1717559767899,4.2764,173.05,173.0,2.1387]
[1717559767900,22.1382,173.04,173.0,2.1387]
[1717559768205,22.1382,173.04,172.97,10.6953]
[1717559768206,7.15,173.01,172.99,2.1388]
[1717559768406,7.15,173.0,172.99,2.1388]
[1717559770397,2.1384,173.03,172.99,2.1388]
[1717559770616,17.33,173.16,172.99,2.1388]
[1717559770617,25.8653,173.07,172.99,124.2776]
[1717559770807,7.15,173.02,173.01,2.1385]
[1717559771210,7.15,173.02,173.0,2.1386]
[1717559771521,7.15,173.01,172.99,2.1388]
[1717559771723,7.15,173.0,172.99,2.1388]
[1717559773720,2.138,173.06,173.02,2.1383]
[1717559773901,20.0,173.06,173.02,2.1383]
[1717559774105,22.138,173.06,173.02,2.1383]
[1717559774331,7.15,173.03,173.02,2.1383]
[1717559774626,2.1381,173.05,173.01,2.1385]
[1717559774819,7.15,173.03,173.02,2.1384]
[1717559775127,7.15,173.03,173.01,2.1385]
[1717559775334,7.15,173.02,173.01,2.1385]
[1717559776033,7.15,173.02,173.0,2.1386]
[1717559776201,7.15,173.02,173.01,2.1386]
[1717559776399,20.0,173.06,173.05,2.1381]
[1717559776603,4.2749,173.1,173.03,2.1382]
[1717559776806,7.15,173.05,173.04,2.1381]
[1717559777109,2.1376,173.09,173.04,2.1381]
[1717559777312,7.15,173.05,173.04,2.1381]
[1717559778008,7.15,173.05,173.01,124.277]
[1717559778327,7.15,173.04,173.03,2.1383]
[1717559780504,2.1378,173.08,173.04,2.1381]
[1717559780711,7.15,173.05,173.04,2.1381]
[1717559780912,2.1378,173.08,173.04,2.1381]
[1717559781240,2.1376,173.09,173.05,2.138]
[1717559781445,7.15,173.06,173.05,2.138]
[1717559782205,7.15,173.06,173.04,2.1381]
[1717559782403,7.15,173.05,173.04,2.1381]
[1717559782804,2.1376,173.09,173.05,2.1381]
[1717559783021,7.15,173.06,173.05,2.1381]
[1717559783719,2.1376,173.09,173.03,124.2766]
[1717559783927,7.15,173.07,173.06,2.1379]
[1717559784916,2.1375,173.1,173.06,2.1379]
[1717559785105,7.15,173.07,173.06,2.1379]
[1717559785309,4.2741,173.14,173.07,120.0]
[1717559785510,2.1372,173.12,173.08,2.1376]
[1717559785810,7.15,173.09,173.08,2.1376]
[1717559786013,2.1372,173.12,173.08,2.1376]
[1717559786211,2.1372,173.12,173.09,2.1375]
[1717559786420,7.15,173.1,173.09,2.1375]
[1717559786638,7.15,173.1,173.08,2.1376]
[1717559786814,2.1372,173.12,173.09,2.1376]
[1717559787014,2.1372,173.12,173.08,2.1376]
[1717559787423,2.1372,173.12,173.09,2.1376]
[1717559787640,2.1372,173.12,173.08,2.1376]
[1717559787842,7.15,173.09,173.08,2.1376]
[1717559788023,20.0,173.13,173.08,4.2754]
[1717559788333,7.15,173.09,173.08,2.1376]
[1717559792334,2.1373,173.12,173.08,2.1376]
[1717559792528,7.15,173.09,173.07,2.1377]
[1717559792737,7.15,173.08,173.07,2.1377]
[1717559794554,2.1374,173.11,173.08,2.1377]
[1717559794849,7.15,173.09,173.06,2.1379]
[1717559795050,7.15,173.07,173.06,2.1379]
[1717559795222,7.15,173.07,173.05,2.138]
[1717559795535,2.1376,173.09,173.06,2.1379]
[1717559795754,7.15,173.07,173.06,2.1379]
[1717559796556,7.15,173.07,173.05,2.138]
[1717559796733,2.1376,173.09,173.06,2.1379]
[1717559796929,7.15,173.07,173.06,2.1379]
[1717559797648,2.1374,173.11,173.07,2.1378]
[1717559798133,7.15,173.08,173.07,2.1378]
[1717559798337,2.1374,173.11,173.07,122.1378]
[1717559798550,7.15,173.08,173.07,122.1378]
[1717559799230,2.1374,173.11,173.07,122.1378]
[1717559799441,7.15,173.08,173.07,122.1378]
[1717559805560,7.15,173.08,173.06,2.1379]
[1717559805858,7.15,173.07,173.06,2.1379]
[1717559806644,7.15,173.07,173.05,2.138]
[1717559806864,7.15,173.06,173.05,2.138]
[1717559808242,7.15,173.06,173.04,2.1381]
[1717559808461,7.15,173.05,173.04,2.1381]
[1717559808638,7.15,173.05,173.04,2.1382]
[1717559809761,7.15,173.07,173.04,2.1382]
[1717559809966,28.6,173.07,173.04,2.1382]
[1717559810360,30.7379,173.07,173.03,2.1383]
[1717559810755,2.1377,173.08,173.04,2.1382]
[1717559810958,7.15,173.05,173.04,2.1382]
[1717559813973,7.15,173.05,173.02,2.1384]
[1717559814267,7.15,173.03,173.02,2.1384]
[1717559815872,14.9636,173.09,173.05,2.138]
[1717559815873,2.1377,173.09,173.05,2.138]
[1717559816067,7.15,173.06,173.04,2.1381]
[1717559816270,7.15,173.05,173.04,2.1381]
[1717559816770,7.15,173.05,173.03,2.1382]
[1717559817153,7.15,173.04,173.03,2.1382]
[1717559817471,2.1377,173.08,173.04,2.1381]
[1717559817663,7.15,173.05,173.04,2.1381]
[1717559821146,7.15,173.05,173.03,2.1383]
[1717559821345,2.138,173.06,173.02,382.4384]
[1717559821546,7.15,173.03,173.02,380.3]
[1717559821970,7.15,173.03,173.02,382.4384]
[1717559825104,30.7379,173.07,173.03,2.1383]
[1717559825262,7.15,173.04,173.03,2.1383]
[1717559825574,2.1379,173.07,173.04,2.1382]
[1717559825880,7.15,173.05,173.04,2.1382]
[1717559826250,7.15,173.05,173.03,2.1382]
[1717559826450,7.15,173.05,173.04,2.1382]
[1717559826680,7.15,173.05,173.03,2.1382]
[1717559827286,8.5496,173.11,173.06,2.1379]
[1717559827287,4.2749,173.11,173.06,2.1379]
[1717559827576,7.15,173.07,173.04,50.44907002]
[1717559827875,7.15,173.06,173.05,2.1381]
[1717559828095,2.1376,173.09,173.06,2.1379]
[1717559828373,7.15,173.07,173.05,2.138]
[1717559828582,7.15,173.06,173.05,2.138]
[1717559832758,2.1377,173.08,173.05,2.138]
[1717559832962,7.15,173.06,173.05,2.138]
[1717559833191,2.1377,173.08,173.05,2.138]
[1717559833382,7.15,173.06,173.05,2.138]
[1717559833583,2.1376,173.09,173.05,2.138]
[1717559833889,7.15,173.06,173.05,2.138]
[1717559836886,2.1377,173.08,173.05,2.138]
[1717559837091,7.15,173.06,173.05,2.138]
[1717559840478,7.15,173.06,173.05,2.138]
[1717559841487,2.1376,173.09,173.04,120.0]
[1717559841674,2.1377,173.08,173.05,2.138]
[1717559841878,7.15,173.06,173.05,2.138]
[1717559842388,2.1377,173.08,173.05,2.138]
[1717559842570,7.15,173.06,173.05,2.138]
[1717559843293,2.1377,173.08,173.05,2.138]
[1717559843465,2.1376,173.09,173.05,2.138]
[1717559843666,7.15,173.06,173.05,2.138]
[1717559844999,7.15,173.06,173.04,2.1381]
[1717559845202,7.15,173.05,173.04,2.1381]
[1717559847394,2.1378,173.08,173.04,2.1381]
[1717559847611,2.1378,173.08,173.05,2.138]
[1717559847782,7.15,173.06,173.05,2.138]
[1717559850117,2.1378,173.08,173.05,2.138]
[1717559850302,7.15,173.06,173.05,2.138]
[1717559854203,10.0,173.2,173.05,2.138]
[1717559854204,2.1369,173.15,173.1,120.0]
[1717559854405,7.15,173.12,173.11,2.1373]
[1717559854700,14.08641443,173.12,173.1,2.1374]
[1717559854913,7.15,173.11,173.1,2.1374]
[1717559855205,30.7368,173.16,173.12,2.1371]
[1717559855412,7.15,173.13,173.11,2.1373]
[1717559855607,7.15,173.12,173.11,2.1373]
[1717559855981,2.1367,173.16,173.12,2.1372]
[1717559856185,7.15,173.13,173.12,2.1372]
[1717559856493,30.7367,173.16,173.12,2.1372]
[1717559856683,7.15,173.13,173.12,2.1372]
[1717559857219,2.1366,173.17,173.13,2.1371]
[1717559857508,7.15,173.14,173.13,2.1371]
[1717559858505,6.82782251,173.38,173.13,2.1371]
[1717559858506,7.15,173.15,173.13,2.1371]
[1717559858805,7.15,173.14,173.13,2.1371]
[1717559859396,2.1366,173.17,173.13,2.1371]
[1717559859706,7.15,173.14,173.13,2.1371]
[1717559860000,2.1365,173.18,173.14,2.1369]
[1717559860181,7.15,173.15,173.14,2.1369]
[1717559862205,7.15,173.15,173.13,2.137]
[1717559862504,7.15,173.14,173.12,2.1371]
[1717559862685,7.15,173.13,173.12,2.1371]
[1717559866002,7.15,173.16,173.14,2.1369]
[1717559866189,7.15,173.15,173.14,2.1369]
[1717559871415,2.1363,173.2,173.16,2.1366]
[1717559871711,7.15,173.17,173.16,2.1366]
[1717559873402,2.1363,173.2,173.16,2.1366]
[1717559873600,7.15,173.17,173.16,2.1366]
[1717559879994,16.4366,173.17,173.12,8.5488]
[1717559880313,7.15,173.13,173.12,2.1372]
[1717559880608,2.1366,173.17,173.14,2.1369]
[1717559880816,7.15,173.15,173.14,2.1369]
[1717559880990,7.15,173.15,173.13,2.137]
[1717559881196,7.15,173.14,173.13,2.137]
[1717559887306,7.15,173.14,173.13,122.137]
[1717559887630,2.1364,173.19,173.16,2.1367]
[1717559887818,7.15,173.17,173.16,2.1367]
[1717559888800,7.15,173.17,173.15,2.1368]
[1717559889120,2.1364,173.19,173.13,139.2339]
[1717559889319,2.1365,173.18,173.15,2.1368]
[1717559889525,7.15,173.16,173.15,2.1368]
[1717559890735,7.15,173.16,173.14,2.1369]
[1717559890906,7.15,173.15,173.14,2.1369]
[1717559892007,7.15,173.15,173.13,2.137]
[1717559892212,7.15,173.14,173.12,2.1372]
[1717559892416,30.7368,173.16,173.13,2.1371]
[1717559892712,7.15,173.14,173.13,2.1371]
[1717559893417,7.15,173.14,173.11,2.1372]
[1717559893623,7.15,173.12,173.11,2.1372]
[1717559894208,30.7368,173.16,173.13,2.1371]
[1717559894420,7.15,173.14,173.13,2.1371]
[1717559894621,7.15,173.14,173.12,2.1371]
[1717559894812,2.1368,173.15,173.12,2.1371]
[1717559894813,7.15,173.13,173.12,2.1371]
[1717559900531,7.15,173.13,173.11,2.1372]
[1717559900732,7.15,173.12,173.11,2.1372]
[1717559906939,7.15,173.12,173.09,4.2752]
[1717559907107,7.15,173.1,173.09,4.2752]
[1717559907310,7.15,173.1,173.09,6.4128]
[1717559909736,7.15,173.1,173.09,2.1376]
[1717559909935,7.15,173.1,173.08,2.1376]
[1717559910233,7.15,173.09,173.08,2.1376]
[1717559916111,7.15,173.09,173.07,2.1378]
[1717559916948,7.15,173.08,173.07,2.1378]
[1717559917111,7.15,173.08,173.06,2.1379]
[1717559917316,7.15,173.08,173.05,4.2762]
[1717559917732,7.15,173.08,173.06,2.1379]
[1717559917936,7.15,173.08,173.04,14.9674]
[1717559918241,7.15,173.08,173.04,6.4146]
[1717559918444,7.15,173.08,173.06,2.1379]
[1717559920054,7.15,173.07,173.05,2.138]
[1717559920345,7.15,173.06,173.05,2.138]
[1717559928324,7.15,173.06,173.04,2.1381]
[1717559928535,7.15,173.05,173.04,2.1382]
[1717559930044,7.15,173.05,173.03,2.1383]
[1717559930247,7.15,173.04,173.03,2.1383]
[1717559935658,2.1378,173.08,173.04,2.1382]
[1717559935838,7.15,173.05,173.04,2.1382]
[1717559936863,7.15,173.05,173.03,2.1383]
[1717559937043,2.1379,173.07,173.03,2.1383]
[1717559937245,7.15,173.05,173.03,2.1383]
[1717559937628,9.2882,173.04,172.99,6.4164]
[1717559937856,7.15,173.01,173.0,2.1387]
[1717559938554,7.15,173.01,172.98,390.9947]
[1717559938555,7.15,173.01,172.98,380.3]
[1717559938738,2.1379,173.07,173.03,2.1383]
[1717559938941,7.15,173.04,173.02,2.1384]
[1717559939164,7.15,173.03,172.99,8.5553]
[1717559939337,7.15,173.0,172.99,2.1388]
[1717559940074,7.15,173.0,172.98,382.4389]
[1717559940235,2.1384,173.03,172.98,380.3]
[1717559940433,7.15,173.0,172.99,2.1388]
[1717559941627,2.1383,173.03,172.99,59.55683209]
[1717559941855,7.15,173.02,173.0,2.1387]
[1717559942157,7.15,173.02,172.99,57.41803209]
[1717559942158,7.15,173.02,172.99,59.55673209]
[1717559942465,7.15,173.03,173.01,2.1385]
[1717559943761,2.138,173.06,173.02,2.1384]
[1717559943950,7.15,173.03,173.01,2.1385]
[1717559944465,7.15,173.03,173.02,2.1384]
[1717559945073,7.15,173.03,173.01,2.1385]
[1717559948662,48.787,173.08,173.04,2.1381]
[1717559948663,2.1377,173.08,173.04,2.1381]
[1717559948868,12.5354,173.11,173.04,120.0]
[1717559949071,2.1375,173.1,173.04,120.0]
[1717559949276,7.15,173.08,173.04,120.0]
[1717559949580,2.1376,173.09,173.05,2.138]
[1717559949871,7.15,173.06,173.04,2.1381]
[1717559950076,7.15,173.05,173.02,120.0]
[1717559950249,7.15,173.05,173.03,2.1382]
[1717559950451,7.15,173.05,173.02,120.0]
[1717559950452,7.15,173.05,173.04,2.1382]
[1717559950678,7.15,173.05,173.03,2.1382]
[1717559950974,7.15,173.04,173.03,2.1382]
[1717559952376,2.1376,173.09,173.05,2.138]
[1717559952587,29.45982863,173.15,173.07,6.4135]
[1717559952747,27.32292863,173.15,173.05,120.0]
[1717559952951,7.15,173.08,173.06,2.1379]
[1717559954173,7.15,173.07,173.04,2.1381]
[1717559954477,7.15,173.05,173.04,2.1382]
[1717559954971,7.15,173.06,173.05,2.138]
[1717559955157,7.15,173.07,173.06,2.1379]
[1717559959846,2.1374,173.11,173.07,2.1378]
[1717559960042,7.15,173.08,173.07,2.1378]
[1717559960473,7.15,173.08,173.06,2.1379]
[1717559960667,7.15,173.07,173.06,2.1379]
[1717559961746,2.1372,173.12,173.08,2.1377]
[1717559962261,7.15,173.09,173.08,2.1377]
[1717559962971,2.1372,173.12,173.08,2.1377]
[1717559963153,7.15,173.09,173.08,2.1377]
[1717559963665,2.1373,173.11,173.07,2.1377]
[1717559963854,7.15,173.08,173.07,2.1377]
[1717559971193,2.1373,173.11,173.05,4.2761]
[1717559971397,2.1373,173.11,173.08,2.1377]
[1717559971584,7.15,173.09,173.08,2.1377]
[1717559971998,7.15,173.09,173.07,2.1378]
[1717559972898,7.15,173.09,173.08,2.1377]
[1717559973275,7.15,173.09,173.07,2.1377]
[1717559975511,7.15,173.08,173.03,4.2766]
[1717559975686,2.1377,173.08,173.05,2.138]
[1717559975882,7.15,173.06,173.05,2.138]
[1717559976515,7.15,173.06,173.04,2.1382]
[1717559976687,33.5626,173.1,173.04,2.1382]
[1717559976688,2.1378,173.08,173.04,2.1382]
[1717559977024,7.15,173.05,173.04,2.1382]
[1717559978501,7.15,173.05,173.02,380.3]
[1717559978706,2.1379,173.07,173.04,2.1382]
[1717559978707,9.2879,173.07,173.04,2.1382]
[1717559978913,7.15,173.05,173.03,2.1382]
[1717559979202,7.15,173.04,173.03,2.1382]
[1717559981188,30.7379,173.07,173.03,2.1382]
[1717559981826,53.8101,173.07,173.03,2.1382]
[1717559983231,2.138,173.06,173.02,2.1384]
[1717559983909,53.8101,173.07,173.03,2.1383]
[1717559984412,37.3572,173.07,173.03,2.1383]
[1717559985437,2.138,173.06,173.03,2.1383]
[1717559985613,2.138,173.06,173.02,2.1384]
[1717559985933,2.1381,173.05,173.0,124.2773]
[1717559986138,2.1381,173.05,173.01,2.1385]
[1717559986316,2.1381,173.05,173.02,2.1384]
[1717559986513,2.1381,173.05,173.0,124.2773]
[1717559986712,2.1381,173.05,173.01,2.1385]
[1717559987114,2.138,173.06,173.02,2.1384]
[1717559987934,7.15,173.05,173.04,2.1381]
[1717559988846,7.15,173.05,173.03,2.1382]
[1717559990248,7.15,173.05,173.02,122.1384]
[1717559990437,28.00704625,173.26,173.0,120.0]
[1717559990734,2.1381,173.05,173.01,2.1385]
[1717559990904,7.15,173.02,173.01,2.1385]
[1717559991607,7.15,173.03,173.02,2.1384]
[1717560000331,7.15,173.03,173.01,2.1385]
[1717560000515,32.8757,173.07,173.02,2.1384]
[1717560000709,7.15,173.03,173.02,2.1384]
[1717560001136,2.1381,173.05,173.02,2.1384]
[1717560001317,7.15,173.03,173.02,2.1384]
[1717560003751,4.2751,173.1,173.01,6.4157]
[1717560003929,7.15,173.07,173.06,2.1378]
[1717560004329,7.15,173.08,173.07,2.1378]
[1717560004937,7.15,173.08,173.06,2.1379]
[1717560005138,7.15,173.07,173.05,2.138]
[1717560005342,7.15,173.06,173.05,2.138]
[1717560005734,2.1376,173.09,173.04,4.2764]
[1717560005937,2.1376,173.09,173.06,2.1379]
[1717560006138,7.15,173.07,173.05,2.138]
[1717560006445,2.1376,173.09,173.06,2.1379]
[1717560006744,22.7934,173.12,173.08,2.1376]
[1717560006929,7.15,173.09,173.07,2.1378]
[1717560007137,7.15,173.08,173.07,2.1378]
[1717560007637,7.15,173.08,173.06,2.1379]
[1717560008220,2.1376,173.09,173.06,2.1379]
[1717560008419,20.0,173.11,173.06,4.2759]
[1717560008645,20.0,173.11,173.07,2.1378]
[1717560008818,7.15,173.08,173.06,2.1379]
[1717560009024,7.15,173.07,173.06,2.1379]
[1717560009526,7.15,173.07,173.05,2.138]
[1717560009863,7.15,173.06,173.04,2.1381]
[1717560010147,7.15,173.05,173.04,2.1381]
[1717560011320,7.15,173.05,173.03,2.1383]
[1717560011652,7.15,173.04,173.03,2.1383]
[1717560012827,2.1377,173.09,173.05,2.138]
[1717560013051,2.1375,173.1,173.06,2.1379]
[1717560013221,7.15,173.07,173.06,2.1379]
[1717560013929,2.1376,173.09,173.06,2.1379]
[1717560014128,7.15,173.07,173.06,2.1379]
[1717560014535,2.1374,173.11,173.05,4.276]
[1717560014847,7.15,173.08,173.07,2.1377]
[1717560015449,2.1374,173.11,173.07,2.1377]
[1717560015652,7.15,173.08,173.07,2.1377]
[1717560017027,2.1374,173.1,173.07,2.1377]
[1717560017336,7.15,173.08,173.07,2.1377]
[1717560025973,2.1375,173.1,173.07,2.1377]
[1717560026176,8.5483,173.14,173.07,120.0]
[1717560026476,7.15,173.11,173.08,2.1376]
[1717560026771,7.15,173.1,173.09,2.1376]
[1717560026966,2.1373,173.12,173.09,2.1376]
[1717560027273,7.15,173.11,173.09,2.1376]
[1717560028474,7.15,173.1,173.08,2.1377]
[1717560029251,7.15,173.11,173.09,2.1376]
[1717560029857,2.1371,173.13,173.1,2.1374]
[1717560030059,63.8295,173.16,173.1,2.1374]
[1717560030060,7.15,173.11,173.1,2.1374]
[1717560032680,2.1371,173.13,173.1,2.1374]
[1717560032881,7.15,173.12,173.1,2.1374]
[1717560033353,21.3958,173.14,173.09,124.2751]
[1717560033542,2.1371,173.13,173.1,2.1374]
[1717560033743,7.15,173.11,173.1,2.1374]
[1717560036473,2.1368,173.16,173.12,2.1372]
[1717560036653,7.15,173.13,173.12,2.1372]
[1717560039969,7.15,173.13,173.11,120.0]
[1717560039970,7.15,173.13,173.11,2.1372]
[1717560040180,7.15,173.12,173.11,2.1372]
[1717560042480,2.1369,173.15,173.11,2.1372]
[1717560042788,30.7368,173.16,173.12,2.1372]
[1717560042986,2.1368,173.15,173.12,2.1372]
[1717560045780,28.6,173.16,173.08,10.6884]
[1717560045983,7.15,173.09,173.08,6.4129]
[1717560046481,7.15,173.09,173.08,12.8261]
[1717560046875,7.15,173.09,173.08,2.1377]
[1717560047793,7.15,173.09,173.07,2.1378]
[1717560048090,7.15,173.09,173.06,2.1379]
[1717560048091,7.15,173.08,173.06,2.1379]
[1717560048266,7.15,173.07,173.05,2.138]
[1717560048468,7.15,173.06,173.05,2.138]
[1717560048976,6.1582,173.12,173.07,2.1378]
[1717560049177,7.15,173.08,173.07,2.1378]
[1717560050888,22.1374,173.11,173.08,2.1377]
[1717560051077,7.15,173.09,173.07,2.1378]
[1717560051385,7.15,173.08,173.07,2.1378]
[1717560054676,7.15,173.08,173.06,2.1379]
[1717560055687,4.2745,173.12,173.05,124.2761]
[1717560055894,7.15,173.1,173.09,2.1375]
[1717560056274,7.15,173.1,173.08,2.1376]
[1717560056584,7.15,173.09,173.08,2.1377]
[1717560058797,2.1372,173.13,173.09,2.1376]
[1717560059104,7.15,173.1,173.09,2.1376]
[1717560060478,7.15,173.1,173.05,4.2759]
[1717560060692,22.5816,173.1,173.08,2.1377]
[1717560060993,7.15,173.09,173.06,2.1379]
[1717560061171,24.719,173.1,173.07,2.1378]
[1717560061372,7.15,173.08,173.07,2.1378]
[1717560063795,7.15,173.08,173.06,4.2759]
[1717560063796,2.1374,173.11,173.08,2.1377]
[1717560064123,7.15,173.09,173.08,2.1377]
[1717560065592,7.15,173.09,173.07,2.1378]
[1717560065773,7.15,173.08,173.07,2.1378]
[1717560068979,57.8671,173.08,173.02,380.3]
[1717560069219,2.1377,173.08,173.04,2.1381]
[1717560069389,7.15,173.05,173.03,2.1382]
[1717560069589,7.15,173.04,173.03,2.1382]
[1717560070116,7.15,173.04,173.02,380.3]
[1717560070396,7.15,173.03,173.02,380.3]
[1717560071188,7.15,173.03,173.0,2.1386]
[1717560071414,39.2894,173.07,173.0,2.1386]
[1717560071415,7.15,173.01,173.0,2.1386]
[1717560076097,7.15,173.01,172.97,130.6952]
[1717560076404,7.15,172.98,172.95,120.0]
[1717560076605,8.6962,173.01,172.97,2.139]
[1717560076804,7.15,172.98,172.97,2.139]
[1717560080801,15.0688,173.04,172.99,2.1387]
[1717560081027,7.15,173.01,173.0,2.1387]
[1717560081316,30.7379,173.07,173.03,2.1382]
[1717560081513,24.5823,173.08,173.04,2.1382]
[1717560081829,7.15,173.05,173.04,2.1382]
[1717560082123,12.8251,173.1,173.03,4.2766]
[1717560082124,2.1375,173.1,173.03,4.2766]
[1717560082424,7.15,173.07,173.04,30.0]
[1717560082714,7.15,173.07,173.06,2.1379]
[1717560083616,7.15,173.07,173.06,32.1379]
[1717560083999,2.1375,173.1,173.06,32.1379]
[1717560084295,7.15,173.09,173.08,2.1377]
[1717560084506,7.15,173.09,173.08,32.1377]
[1717560086790,7.15,173.09,173.08,2.1377]
[1717560087912,2.1373,173.12,173.08,2.1377]
[1717560088117,7.15,173.09,173.08,2.1377]
[1717560088318,2.1373,173.12,173.08,2.1377]
[1717560088512,7.15,173.09,173.08,2.1377]
[1717560092310,7.15,173.09,173.06,2.1379]
[1717560092512,7.15,173.07,173.06,2.1379]
[1717560092711,4.65,173.07,173.06,2.1379]
[1717560094035,2.1373,173.12,173.08,2.1377]
[1717560094321,7.15,173.09,173.08,2.1377]
[1717560095221,7.15,173.09,173.08,2.1377]
[1717560095730,2.1372,173.12,173.08,2.1377]
[1717560096037,7.15,173.09,173.07,2.1378]
[1717560096223,7.15,173.08,173.07,2.1378]
[1717560097902,2.1373,173.12,173.08,2.1376]
[1717560098239,24.0553,173.12,173.08,2.1376]
[1717560098412,7.15,173.09,173.08,2.1376]
[1717560099929,2.1373,173.11,173.08,2.1376]
[1717560100235,7.15,173.09,173.08,2.1376]
[1717560101437,7.15,173.09,173.07,2.1377]
[1717560101605,2.1373,173.11,173.04,6.4146]
[1717560101606,7.15,173.08,173.04,130.6908]
[1717560101812,7.15,173.06,173.05,2.1381]
[1717560102412,7.15,173.06,173.04,2.1381]
[1717560102817,7.15,173.05,173.04,2.1381]
[1717560103309,7.15,173.05,173.01,382.4385]
[1717560103310,9.2881,173.05,173.01,382.4385]
[1717560103511,4.65,173.02,172.97,8.5559]
[1717560103711,2.1381,173.05,172.98,130.6948]
[1717560103930,2.1381,173.05,173.01,2.1385]